bitfinex/quotes_SOLUSD_20250612
["timestamp","ask_amount","ask_price","bid_price","bid_amount"]
[1749743784181,6.37186185,156.94,156.91,29.31994399]
[1749743784575,6.37186185,156.94,156.87,29.31994399]
[1749743785187,6.37186185,156.94,156.88,18.64964886]
[1749743785578,6.37104994,156.96,156.88,18.64964886]
[1749743785782,6.37104994,156.96,156.93,29.31994399]
[1749743786188,10.96419496,156.96,156.88,18.64964886]
[1749743786384,6.37104994,156.96,156.92,29.31994399]
[1749743786986,51.6186188,156.96,156.87,59.71994399]
[1749743787182,29.31994399,156.95,156.9,29.31994399]
[1749743787391,29.31994399,156.95,156.86,18.64964886]
[1749743787392,51.6186188,156.96,156.91,29.31994399]
[1749743788082,22.29867481,156.96,156.91,29.31994399]
[1749743788282,51.6186188,156.96,156.91,29.31994399]
[1749743788799,22.29867481,156.96,156.91,29.31994399]
[1749743789008,51.6186188,156.96,156.91,29.31994399]
[1749743789182,4.58826762,156.95,156.86,18.64964886]
[1749743789381,4.58809018,156.95,156.91,29.31994399]
[1749743789701,22.29867481,156.96,156.92,29.31994399]
[1749743789886,51.6186188,156.96,156.91,29.31994399]
[1749743790275,51.6186188,156.96,156.87,29.31994399]
[1749743790276,29.31994399,156.94,156.86,18.64964886]
[1749743790503,29.31994399,156.93,156.88,29.31994399]
[1749743790808,29.31994399,156.94,156.9,29.31994399]
[1749743791184,55.31994399,156.95,156.9,29.31994399]
[1749743791511,26.0,156.95,156.9,29.31994399]
[1749743791810,6.37226789,156.93,156.9,29.31994399]
[1749743792912,6.37226789,156.93,156.89,29.31994399]
[1749743793118,6.37226789,156.93,156.91,29.31994399]
[1749743793291,6.37226789,156.93,156.9,29.31994399]
[1749743794393,6.37226789,156.93,156.92,29.31994399]
[1749743794610,6.37226789,156.93,156.87,29.31994399]
[1749743795805,6.37226789,156.93,156.88,18.64964886]
[1749743796114,22.30110463,156.95,156.88,18.64964886]
[1749743796407,51.62104862,156.95,156.85,1.6426]
[1749743796587,51.62104862,156.95,156.9,29.31994399]
[1749743796789,29.31994399,156.94,156.86,18.64964886]
[1749743797015,22.30110463,156.95,156.86,18.64964886]
[1749743797215,51.62104862,156.95,156.91,29.31994399]
[1749743797507,22.30110463,156.95,156.91,29.31994399]
[1749743797908,6.37145587,156.95,156.92,29.31994399]
[1749743798116,6.37104994,156.96,156.93,29.31994399]
[1749743798491,6.37104994,156.96,156.94,29.31994399]
[1749743798995,6.37104994,156.96,156.91,6.1523]
[1749743799313,51.6186188,156.96,156.91,6.1523]
[1749743799520,22.29867481,156.96,156.9,29.31994399]
[1749743799685,29.31994399,156.94,156.9,29.31994399]
[1749743799886,29.31994399,156.93,156.87,6.1777]
[1749743800093,6.37348629,156.9,156.87,6.1777]
[1749743800391,29.31994399,156.89,156.85,1.6426]
[1749743800586,29.31994399,156.88,156.85,1.6426]
[1749743801091,29.31994399,156.87,156.83,6.4241]
[1749743801292,29.31994399,156.87,156.83,35.74404399]
[1749743801493,29.31994399,156.87,156.83,6.4241]
[1749743801693,26.0,156.87,156.83,6.4241]
[1749743801910,29.31994399,156.86,156.81,30.97864399]
[1749743802110,6.37551801,156.85,156.81,30.97864399]
[1749743802625,35.6951755,156.86,156.82,29.31994399]
[1749743802799,6.37523151,156.86,156.82,29.31994399]
[1749743803516,6.37267397,156.92,156.85,29.31994399]
[1749743803718,32.37267397,156.92,156.88,29.31994399]
[1749743803916,6.37267397,156.92,156.83,0.28432314]
[1749743804116,29.31994399,156.91,156.87,29.31994399]
[1749743804324,32.37267397,156.92,156.87,29.31994399]
[1749743804704,32.37267397,156.92,156.88,29.31994399]
[1749743805124,61.69261796,156.92,156.88,29.31994399]
[1749743805325,32.37267397,156.92,156.82,18.64964886]
[1749743805495,61.69261796,156.92,156.88,29.31994399]
[1749743805696,29.31994399,156.91,156.86,29.31994399]
[1749743806023,29.31994399,156.91,156.83,0.22]
[1749743806210,6.37348629,156.9,156.87,29.31994399]
[1749743807666,6.37348629,156.9,156.82,18.64964886]
[1749743807927,29.31994399,156.89,156.84,29.31994399]
[1749743808124,22.30720203,156.9,156.84,29.31994399]
[1749743808309,45.25365973,156.9,156.85,29.31994399]
[1749743808621,6.3730801,156.91,156.88,29.31994399]
[1749743808820,6.3730801,156.91,156.87,29.31994399]
[1749743809630,6.3730801,156.91,156.82,18.933972]
[1749743809847,29.31994399,156.87,156.81,1.6587]
[1749743810123,55.31994399,156.82,156.77,29.31994399]
[1749743810307,35.6970883,156.81,156.78,0.22]
[1749743810506,35.6970883,156.81,156.76,30.93744399]
[1749743811117,6.37714431,156.81,156.78,29.31994399]
[1749743811317,6.37633105,156.83,156.8,29.31994399]
[1749743812328,35.69586849,156.84,156.8,29.31994399]
[1749743812923,6.3759245,156.84,156.8,29.31994399]
[1749743813129,35.69586849,156.84,156.8,29.31994399]
[1749743813626,6.3759245,156.84,156.77,18.64964886]
[1749743813836,35.69586849,156.84,156.8,29.31994399]
[1749743814134,6.3759245,156.84,156.81,29.31994399]
[1749743814928,35.69586849,156.84,156.8,29.31994399]
[1749743815121,6.3759245,156.84,156.8,29.31994399]
[1749743815326,6.3759245,156.84,156.81,29.31994399]
[1749743817125,6.3759245,156.84,156.77,18.64964886]
[1749743817332,6.3759245,156.84,156.81,29.31994399]
[1749743817834,6.37511156,156.86,156.83,29.31994399]
[1749743818035,6.37511156,156.86,156.84,29.31994399]
[1749743818638,6.37429882,156.88,156.85,29.31994399]
[1749743818937,48.30862387,156.89,156.8,18.64964886]
[1749743819140,77.62856786,156.89,156.85,29.31994399]
[1749743819527,48.30862387,156.89,156.85,29.31994399]
[1749743820136,48.30862387,156.89,156.86,29.31994399]
[1749743820624,77.62856786,156.89,156.83,1.599]
[1749743821027,29.31994399,156.87,156.81,6.1986]
[1749743821229,29.31994399,156.84,156.8,29.31994399]
[1749743821523,29.31994399,156.81,156.76,29.31994399]
[1749743821730,29.31994399,156.8,156.75,1.6141]
[1749743821935,26.0,156.82,156.79,29.31994399]
[1749743822135,26.0,156.82,156.75,1.6141]
[1749743822343,55.31994399,156.82,156.77,29.31994399]
[1749743822523,26.0,156.82,156.77,29.31994399]
[1749743822727,29.31994399,156.8,156.76,29.31994399]
[1749743822921,22.32000509,156.81,156.76,29.31994399]
[1749743823150,22.32000509,156.81,156.79,29.31994399]
[1749743823338,6.37714431,156.81,156.8,29.31994399]
[1749743823548,6.37511156,156.86,156.8,29.31994399]
[1749743823841,22.31289047,156.86,156.81,6.3468]
[1749743824032,26.0,156.85,156.83,29.31994399]
[1749743824424,55.31994399,156.85,156.77,25.25944886]
[1749743824630,29.31994399,156.84,156.8,29.31994399]
[1749743824821,6.37633105,156.83,156.8,29.31994399]
[1749743825021,6.37633105,156.83,156.77,6.6098]
[1749743825255,6.37633105,156.83,156.82,29.31994399]
[1749743825549,6.37633105,156.83,156.81,29.31994399]
[1749743826241,6.37633105,156.83,156.77,6.6098]
[1749743826242,26.0,156.82,156.77,6.6098]
[1749743826421,26.0,156.82,156.8,29.31994399]
[1749743826621,26.0,156.82,156.77,6.6098]
[1749743826823,6.37714431,156.81,156.79,29.31994399]
[1749743827128,6.37714431,156.81,156.77,6.6098]
[1749743827330,22.32000509,156.81,156.77,6.6098]
[1749743827531,22.32000509,156.81,156.77,29.31994399]
[1749743827729,22.32000509,156.81,156.75,1.6141]
[1749743827730,51.63994908,156.81,156.75,1.6141]
[1749743827941,22.32000509,156.81,156.74,29.31994399]
[1749743828147,29.31994399,156.8,156.73,6.3432]
[1749743828347,29.31994399,156.8,156.76,29.31994399]
[1749743828529,29.31994399,156.8,156.73,6.3432]
[1749743828728,29.31994399,156.8,156.76,29.31994399]
[1749743829037,6.37795777,156.79,156.73,6.3432]
[1749743829228,6.37795777,156.79,156.76,29.31994399]
[1749743829426,6.37714431,156.81,156.78,29.31994399]
[1749743829725,6.37633105,156.83,156.8,1.5282]
[1749743829929,6.37633105,156.83,156.8,7.8714]
[1749743830844,22.31715869,156.83,156.79,29.31994399]
[1749743831425,48.31715869,156.83,156.77,29.31994399]
[1749743831656,48.31715869,156.83,156.76,7.8714]
[1749743831863,77.63710268,156.83,156.78,29.31994399]
[1749743832032,48.31715869,156.83,156.78,29.31994399]
[1749743832353,48.31715869,156.83,156.76,7.8714]
[1749743832526,48.31715869,156.83,156.78,29.31994399]
[1749743832728,48.31715869,156.83,156.76,7.8714]
[1749743832955,6.37795777,156.79,156.76,37.19134399]
[1749743833159,6.37795777,156.79,156.76,7.8714]
[1749743833532,6.37795777,156.79,156.76,37.19134399]
[1749743834257,22.32285221,156.79,156.76,7.8714]
[1749743834423,22.32285221,156.79,156.72,8.1796]
[1749743834633,22.32285221,156.79,156.76,29.31994399]
[1749743834852,22.32285221,156.79,156.72,8.1796]
[1749743835027,22.32285221,156.79,156.76,29.31994399]
[1749743835347,51.6427962,156.79,156.72,8.1796]
[1749743835521,22.32285221,156.79,156.75,29.31994399]
[1749743835853,6.37795777,156.79,156.72,8.1796]
[1749743836225,22.32285221,156.79,156.72,8.1796]
[1749743836432,22.32285221,156.79,156.76,29.31994399]
[1749743836840,6.37795777,156.79,156.76,29.31994399]
[1749743837152,6.37714431,156.81,156.73,18.64964886]
[1749743837450,6.37714431,156.81,156.78,29.31994399]
[1749743837683,51.63994908,156.81,156.73,18.64964886]
[1749743838025,51.63994908,156.81,156.76,29.31994399]
[1749743838226,51.63994908,156.81,156.73,18.64964886]
[1749743838428,51.63994908,156.81,156.76,29.31994399]
[1749743838628,29.31994399,156.8,156.76,29.31994399]
[1749743839138,51.6427962,156.79,156.75,29.31994399]
[1749743839448,48.32285221,156.79,156.72,8.1796]
[1749743839625,6.37470516,156.87,156.78,58.63988798]
[1749743839958,15.93961481,156.85,156.8,6.3146]
[1749743840456,29.31994399,156.83,156.79,1.5171]
[1749743840625,29.31994399,156.84,156.8,29.31994399]
[1749743840826,15.93961481,156.85,156.79,1.5171]
[1749743841033,15.93961481,156.85,156.81,29.31994399]
[1749743841227,22.31513282,156.85,156.81,29.31994399]
[1749743841955,51.63507681,156.85,156.79,1.5171]
[1749743842133,22.31513282,156.85,156.81,29.31994399]
[1749743842450,22.31513282,156.85,156.79,1.5171]
[1749743842642,6.37551801,156.85,156.79,1.5171]
[1749743842841,6.37551801,156.85,156.8,18.64964886]
[1749743843022,15.93633356,156.88,156.84,29.31994399]
[1749743843023,6.37470516,156.87,156.84,29.31994399]
[1749743843227,6.37470516,156.87,156.85,29.31994399]
[1749743843637,6.37470516,156.87,156.8,18.64964886]
[1749743843830,6.37470516,156.87,156.85,29.31994399]
[1749743844532,6.37429882,156.88,156.85,29.31994399]
[1749743845936,29.31994399,156.86,156.79,1.5171]
[1749743846130,29.31994399,156.85,156.8,29.31994399]
[1749743846361,29.31994399,156.87,156.83,29.31994399]
[1749743846652,6.37470516,156.87,156.84,29.31994399]
[1749743846855,6.37470516,156.87,156.85,29.31994399]
[1749743847962,22.31004588,156.88,156.85,29.31994399]
[1749743848132,29.31994399,156.87,156.8,18.64964886]
[1749743848336,51.62998987,156.88,156.83,29.31994399]
[1749743848532,6.37429882,156.88,156.84,29.31994399]
[1749743848731,6.37348629,156.9,156.87,29.31994399]
[1749743848951,3.9882,156.94,156.89,29.31994399]
[1749743848952,15.93029504,156.94,156.89,29.31994399]
[1749743849147,6.37186185,156.94,156.92,29.31994399]
[1749743849330,6.37186185,156.94,156.88,6.1988]
[1749743849534,29.31994399,156.93,156.88,6.1988]
[1749743849965,54.14702508,156.98,156.89,29.31994399]
[1749743850141,29.31994399,156.93,156.89,29.31994399]
[1749743851141,29.31994399,156.93,156.88,6.1988]
[1749743851343,29.31994399,156.89,156.84,1.5266]
[1749743851534,29.31994399,156.85,156.8,8.0259]
[1749743851736,29.31994399,156.84,156.8,37.34584399]
[1749743851948,6.37633105,156.83,156.8,8.0259]
[1749743852357,6.37633105,156.83,156.8,37.34584399]
[1749743853451,6.37633105,156.83,156.8,8.0259]
[1749743854055,6.37633105,156.83,156.8,37.34584399]
[1749743854578,6.37633105,156.83,156.82,29.31994399]
[1749743855065,6.37633105,156.83,156.81,29.31994399]
[1749743856062,6.3759245,156.84,156.8,37.34584399]
[1749743856262,6.3759245,156.84,156.81,29.31994399]
[1749743856647,6.3759245,156.84,156.8,37.34584399]
[1749743856858,6.1941075,156.84,156.8,37.34584399]
[1749743857060,45.25795157,156.86,156.81,29.31994399]
[1749743857244,35.69553091,156.85,156.81,29.31994399]
[1749743857444,6.37558692,156.85,156.83,29.31994399]
[1749743857642,6.37558692,156.85,156.84,29.31994399]
[1749743857855,6.37470516,156.87,156.84,29.31994399]
[1749743858054,29.31994399,156.91,156.86,29.31994399]
[1749743858260,26.0,156.91,156.87,29.31994399]
[1749743858461,29.31994399,156.91,156.87,29.31994399]
[1749743858957,26.0,156.91,156.86,29.31994399]
[1749743859166,26.0,156.91,156.88,29.31994399]
[1749743859365,22.30009556,156.95,156.9,29.31994399]
[1749743859568,22.30009556,156.95,156.89,1.6063]
[1749743859746,26.0,156.92,156.88,6.5738]
[1749743859945,15.93111833,156.93,156.88,6.5738]
[1749743860443,15.93111833,156.93,156.87,29.31994399]
[1749743860644,15.93111833,156.93,156.85,1.5748]
[1749743860967,26.0,156.92,156.87,29.31994399]
[1749743861166,26.0,156.92,156.85,1.5748]
[1749743861347,55.31994399,156.92,156.87,29.31994399]
[1749743861665,29.31994399,156.91,156.87,29.31994399]
[1749743862054,6.37348629,156.9,156.87,29.31994399]
[1749743862364,22.30720203,156.9,156.86,29.31994399]
[1749743862551,22.30720203,156.9,156.87,29.31994399]
[1749743862959,6.37348629,156.9,156.88,29.31994399]
[1749743863575,6.37348629,156.9,156.87,29.31994399]
[1749743864074,51.62714602,156.9,156.86,29.31994399]
[1749743864242,22.30720203,156.9,156.88,29.31994399]
[1749743864642,22.30720203,156.9,156.87,29.31994399]
[1749743865459,22.30720203,156.9,156.86,29.31994399]
[1749743865766,15.93371574,156.9,156.86,29.31994399]
[1749743866279,15.93371574,156.9,156.87,29.31994399]
[1749743866462,15.93371574,156.9,156.86,29.31994399]
[1749743866777,6.3730801,156.91,156.88,29.31994399]
[1749743866975,22.30578037,156.91,156.85,1.5748]
[1749743867344,22.30578037,156.91,156.87,29.31994399]
[1749743867707,6.37226789,156.93,156.9,29.31994399]
[1749743867852,6.37226789,156.93,156.92,29.31994399]
[1749743868473,6.37226789,156.93,156.88,18.64964886]
[1749743868851,6.37226789,156.93,156.87,29.31994399]
[1749743869261,6.37226789,156.93,156.9,29.31994399]
[1749743869555,6.37186185,156.94,156.9,29.31994399]
[1749743869864,29.31994399,156.93,156.88,29.31994399]
[1749743870258,29.31994399,156.93,156.85,31.9148]
[1749743870459,29.31994399,156.93,156.88,29.31994399]
[1749743870853,29.31994399,156.93,156.89,29.31994399]
[1749743871777,6.37267397,156.92,156.89,29.31994399]
[1749743872008,6.37267397,156.92,156.85,1.5748]
[1749743872274,6.37267397,156.92,156.9,29.31994399]
[1749743873473,6.37267397,156.92,156.9,19.49018713]
[1749743873672,6.37226789,156.93,156.9,19.49018713]
[1749743875199,6.37226789,156.93,156.92,19.49018713]
[1749743875381,6.37145587,156.95,156.92,19.49018713]
[1749743875682,6.37104994,156.96,156.93,19.49018713]
[1749743876668,6.37104994,156.96,156.94,19.49018713]
[1749743876878,6.37104994,156.96,156.95,19.49018713]
[1749743877058,6.37076386,156.97,156.95,19.49018713]
[1749743877260,6.37076386,156.97,156.96,19.49018713]
[1749743877581,5.74956669,156.98,156.96,19.49018713]
[1749743877789,5.74956669,156.98,156.97,19.49018713]
[1749743877967,12.11980493,156.98,156.97,19.49018713]
[1749743878487,12.11980493,156.98,156.9,18.64964886]
[1749743878659,12.11980493,156.98,156.96,19.49018713]
[1749743878859,12.11980493,156.98,156.97,19.49018713]
[1749743879387,5.74956669,156.98,156.93,18.64964886]
[1749743879569,5.74956669,156.98,156.97,19.49018713]
[1749743880457,12.11980493,156.98,156.9,0.28432314]
[1749743880664,31.60999206,156.98,156.9,18.64964886]
[1749743880862,47.53558767,156.98,156.9,18.64964886]
[1749743881063,47.53558767,156.98,156.93,19.49018713]
[1749743881487,19.49018713,156.97,156.88,38.13983599]
[1749743881791,6.37226789,156.93,156.84,30.08]
[1749743882091,6.37226789,156.93,156.89,27.67988713]
[1749743882261,19.49018713,156.92,156.87,19.49018713]
[1749743882457,22.30293761,156.93,156.9,19.49018713]
[1749743883066,6.37226789,156.93,156.91,19.49018713]
[1749743883263,6.37226789,156.93,156.87,29.2309549]
[1749743883584,6.37226789,156.93,156.92,29.2309549]
[1749743883779,6.37145587,156.95,156.92,29.2309549]
[1749743883979,22.30009556,156.95,156.9,29.2309549]
[1749743884295,51.53105046,156.95,156.9,29.2309549]
[1749743885099,22.30009556,156.95,156.92,29.2309549]
[1749743885393,22.30009556,156.95,156.87,29.2309549]
[1749743885394,6.37064407,156.97,156.91,24.91484886]
[1749743885560,6.37064407,156.97,156.94,29.2309549]
[1749743885759,6.37064407,156.97,156.95,29.2309549]
[1749743886188,22.29725425,156.97,156.91,6.2652]
[1749743886683,22.29725425,156.97,156.94,29.2309549]
[1749743887092,6.37064407,156.97,156.95,29.2309549]
[1749743887404,5.74956669,156.98,156.96,29.2309549]
[1749743887603,5.74956669,156.98,156.97,29.2309549]
[1749743888110,5.74956669,156.98,156.97,47.88060376]
[1749743888310,5.74956669,156.98,156.97,49.39800376]
[1749743888793,7.66608892,157.0,156.98,18.64964886]
[1749743888971,7.66608892,157.0,156.99,29.2309549]
[1749743889171,7.66608892,157.0,156.99,47.88060376]
[1749743890479,11.49913338,157.02,157.0,18.933972]
[1749743890685,5.75370461,157.06,157.02,18.933972]
[1749743891011,5.75370461,157.06,157.01,29.98]
[1749743891293,12.12075876,157.06,157.03,29.2309549]
[1749743891495,12.12075876,157.06,157.05,29.2309549]
[1749743891673,5.75370461,157.06,157.05,29.2309549]
[1749743892914,5.75370461,157.06,156.98,30.26432314]
[1749743892915,12.12069811,157.06,156.98,30.12216157]
[1749743893089,12.12069811,157.06,157.03,29.2309549]
[1749743893292,12.12069811,157.06,156.99,18.64964886]
[1749743893484,12.12069811,157.06,157.04,29.2309549]
[1749743894101,12.12069811,157.06,157.05,29.2309549]
[1749743895281,12.12069811,157.06,157.02,0.23494143]
[1749743895484,12.12069811,157.06,157.04,29.2309549]
[1749743896099,12.12069811,157.06,157.05,29.2309549]
[1749743896298,12.12069811,157.06,157.04,29.2309549]
[1749743896502,12.12069811,157.06,157.05,29.2309549]
[1749743897372,12.12069811,157.06,157.04,29.2309549]
[1749743897575,57.26913677,157.06,157.03,0.23492647]
[1749743899003,28.03818187,157.06,157.04,29.2309549]
[1749743899189,28.03818187,157.06,157.05,29.2309549]
[1749743899190,12.12069811,157.06,157.05,29.2309549]
[1749743899779,5.75370461,157.06,157.05,29.2309549]
[1749743899977,12.12069811,157.06,157.05,29.2309549]
[1749743900588,5.75370461,157.06,157.05,29.2309549]
[1749743901100,12.12069811,157.06,157.05,29.2309549]
[1749743901509,5.75370461,157.06,157.05,29.2309549]
[1749743902911,12.12069811,157.06,157.05,29.2309549]
[1749743903616,5.75370461,157.06,157.05,29.2309549]
[1749743905395,5.75370461,157.06,157.05,58.4619098]
[1749743905813,5.75370461,157.06,157.05,6.326]
[1749743906112,5.75370461,157.06,157.05,35.5569549]
[1749743906302,5.75370461,157.06,157.05,64.7879098]
[1749743906815,5.75370461,157.06,157.05,35.5569549]
[1749743907413,5.75370461,157.06,157.05,64.7879098]
[1749743907595,5.75370461,157.06,157.05,83.43755866]
[1749743908123,5.75370461,157.06,157.05,85.02935866]
[1749743908716,12.12074077,157.06,157.04,29.2309549]
[1749743908907,12.12074077,157.06,157.05,29.2309549]
[1749743909501,12.12074077,157.06,157.03,0.23492647]
[1749743909709,12.12074077,157.06,157.05,29.2309549]
[1749743910721,12.12074077,157.06,157.03,0.23492647]
[1749743910904,12.12074077,157.06,157.05,29.2309549]
[1749743911622,12.12074077,157.06,157.03,0.23492647]
[1749743911820,55.2309549,157.04,157.03,0.23492647]
[1749743912419,26.0,157.04,157.03,0.23492647]
[1749743912830,61.59875928,157.04,157.03,0.23492647]
[1749743913495,68.51575999,157.04,157.03,0.23492647]
[1749743913698,68.51584782,157.04,157.03,0.23492647]
[1749743913901,34.67347707,157.04,157.03,0.23492647]
[1749743914124,36.97969871,157.04,157.03,0.23492647]
[1749743914321,36.97993248,157.04,157.03,0.23492647]
[1749743914546,6.36780438,157.04,157.03,0.23492647]
[1749743914893,10.97995077,157.04,157.03,0.23492647]
[1749743915314,10.97996289,157.04,157.03,0.23492647]
[1749743915500,10.97961745,157.04,157.03,0.23492647]
[1749743915700,10.9796978,157.04,157.03,0.23492647]
[1749743916011,10.97969428,157.04,157.03,0.23492647]
[1749743916318,10.97970048,157.04,157.03,0.23492647]
[1749743916533,10.97962382,157.04,157.03,29.46588137]
[1749743916713,6.36747502,157.05,157.03,29.46588137]
[1749743917035,6.36747502,157.05,157.04,29.2309549]
[1749743920129,10.97855518,157.05,157.03,0.23492647]
[1749743920328,4.61108016,157.04,157.03,0.23492647]
[1749743920535,4.61136346,157.04,157.03,29.46588137]
[1749743920835,6.36780438,157.04,157.03,0.23492647]
[1749743921131,10.97625806,157.04,157.03,0.23492647]
[1749743921432,10.97623856,157.04,157.03,0.23492647]
[1749743921612,10.97610751,157.04,157.03,0.23492647]
[1749743921816,6.36780438,157.04,157.03,0.23492647]
[1749743922317,10.97605286,157.04,157.03,0.23492647]
[1749743922517,6.36780438,157.04,157.03,0.23492647]
[1749743922718,10.97515478,157.04,157.03,0.23492647]
[1749743922935,6.36780438,157.04,157.03,29.46588137]
[1749743923431,13.27859121,157.04,157.03,29.46588137]
[1749743923619,13.27848438,157.04,157.03,0.23492647]
[1749743923804,6.36780438,157.04,157.03,0.23492647]
[1749743924006,35.88308242,157.04,157.03,0.23492647]
[1749743924210,8.9552863,157.04,157.03,0.23492647]
[1749743924536,42.79192926,157.04,157.03,0.23492647]
[1749743924836,42.79188648,157.04,157.03,0.23492647]
[1749743925041,35.88308242,157.04,157.03,0.23492647]
[1749743925442,26.0,157.01,156.97,29.2309549]
[1749743926113,4.60562573,157.0,156.98,29.2309549]
[1749743926515,4.60562573,157.0,156.93,6.1107]
[1749743926829,30.60562573,156.99,156.96,29.2309549]
[1749743927137,26.0,156.99,156.95,29.2309549]
[1749743927309,26.0,156.99,156.93,6.1107]
[1749743927508,85.96535913,157.04,156.95,29.2309549]
[1749743927509,22.29583385,156.98,156.95,29.2309549]
[1749743927908,6.37023824,156.98,156.97,29.2309549]
[1749743928520,6.37023824,156.98,156.96,29.2309549]
[1749743929437,26.0,156.97,156.94,29.2309549]
[1749743929629,26.0,156.97,156.93,32.6609549]
[1749743929630,55.2309549,156.97,156.93,32.6609549]
[1749743929948,55.2309549,156.97,156.92,29.2309549]
[1749743930248,29.2309549,156.96,156.91,29.2309549]
[1749743930537,26.0,156.97,156.92,32.6609549]
[1749743930844,29.51527804,156.96,156.91,29.2309549]
[1749743931432,6.37186185,156.94,156.92,29.2309549]
[1749743931638,6.37186185,156.94,156.89,6.0116]
[1749743931842,22.30151649,156.94,156.92,29.2309549]
[1749743932039,22.30151649,156.94,156.89,6.0116]
[1749743932244,22.30151649,156.94,156.92,29.2309549]
[1749743932554,6.37186185,156.94,156.92,29.2309549]
[1749743932860,6.37186185,156.94,156.93,29.2309549]
[1749743933451,6.37186185,156.94,156.89,6.0116]
[1749743933663,6.37186185,156.94,156.92,29.2309549]
[1749743933841,29.2309549,156.93,156.89,29.2309549]
[1749743934231,29.2309549,156.92,156.88,29.2309549]
[1749743934452,26.0,156.9,156.89,0.17]
[1749743934753,26.0,156.9,156.87,29.2309549]
[1749743935531,6.37389253,156.89,156.88,29.2309549]
[1749743935964,6.37226789,156.93,156.88,29.2309549]
[1749743936255,6.37226789,156.93,156.92,29.2309549]
[1749743936829,6.37226789,156.93,156.88,0.17]
[1749743937966,6.37226789,156.93,156.92,29.2309549]
[1749743940653,6.37226789,156.93,156.88,18.81964886]
[1749743940850,22.30293761,156.93,156.88,0.17]
[1749743941177,51.53389251,156.93,156.89,29.2309549]
[1749743941360,29.2309549,156.92,156.88,0.17]
[1749743941743,22.30578037,156.91,156.88,0.17]
[1749743941964,51.53673527,156.91,156.88,0.17]
[1749743942172,55.2309549,156.89,156.86,0.23518107]
[1749743942351,29.2309549,156.88,156.86,3.36518107]
[1749743943057,26.0,156.88,156.86,0.23518107]
[1749743943765,6.37470516,156.87,156.86,0.23518107]
[1749743944156,6.37470516,156.87,156.86,29.46613597]
[1749743944664,6.37470516,156.87,156.86,0.23518107]
[1749743945449,6.37470516,156.87,156.85,29.2309549]
[1749743945748,22.30880577,156.89,156.86,29.2309549]
[1749743945947,48.30880577,156.89,156.85,29.2309549]
[1749743946352,48.30880577,156.89,156.82,3.13]
[1749743946353,6.37389253,156.89,156.83,18.64964886]
[1749743946575,6.37389253,156.89,156.88,29.2309549]
[1749743946954,6.3730801,156.91,156.88,29.2309549]
[1749743947157,6.37186185,156.94,156.9,29.2309549]
[1749743947358,6.37186185,156.94,156.93,29.2309549]
[1749743948047,22.29725425,156.97,156.93,29.2309549]
[1749743948454,29.2309549,156.96,156.89,6.6529]
[1749743948658,29.2309549,156.95,156.91,29.2309549]
[1749743950190,29.2309549,156.95,156.93,29.2309549]
[1749743950191,6.37145587,156.95,156.93,29.2309549]
[1749743950348,6.37145587,156.95,156.94,29.2309549]
[1749743950761,6.37145587,156.95,156.93,29.2309549]
[1749743951176,6.37145587,156.95,156.94,29.2309549]
[1749743951474,6.37145587,156.95,156.93,29.2309549]
[1749743952251,6.37104994,156.96,156.94,29.2309549]
[1749743952453,6.37104994,156.96,156.95,29.2309549]
[1749743953770,6.37023824,156.98,156.95,29.2309549]
[1749743953953,6.37023824,156.98,156.96,29.2309549]
[1749743954480,6.36861546,157.02,156.92,18.64964886]
[1749743954668,6.36861546,157.02,156.98,29.2309549]
[1749743954976,52.90556718,157.02,156.98,29.2309549]
[1749743955182,48.29015411,157.02,156.98,29.2309549]
[1749743955359,32.36861546,157.02,156.99,29.2309549]
[1749743956170,32.36861546,157.02,156.95,1.6546]
[1749743956368,32.36861546,157.02,156.99,29.2309549]
[1749743957256,6.36739891,157.05,156.99,6.0616]
[1749743957463,22.2858962,157.05,157.02,29.2309549]
[1749743958071,22.2858962,157.05,157.01,29.2309549]
[1749743958471,22.2858962,157.05,157.02,29.2309549]
[1749743958665,6.36739891,157.05,157.04,29.2309549]
[1749743958876,27.16054872,157.06,157.04,29.2309549]
[1749743958877,33.52769999,157.06,157.04,29.2309549]
[1749743959178,12.12069811,157.06,157.05,29.2309549]
[1749743959379,5.75370461,157.06,157.05,29.2309549]
[1749743960155,5.75370461,157.06,157.05,58.4619098]
[1749743960360,5.75370461,157.06,157.04,1.6189]
[1749743960697,5.75370461,157.06,157.05,47.88060376]
[1749743961598,5.75370461,157.06,157.05,48.19060376]
[1749743962099,5.75370461,157.06,157.05,0.31]
[1749743962273,5.75370461,157.06,157.05,29.5409549]
[1749743963672,5.75370461,157.06,157.05,0.31]
[1749743963873,5.75370461,157.06,157.05,29.5409549]
[1749743964306,5.75370461,157.06,157.05,29.2309549]
[1749743966669,5.75370461,157.06,157.04,1.6189]
[1749743966880,5.75370461,157.06,157.05,29.2309549]
[1749743967980,5.75370461,157.06,156.99,7.5969]
[1749743967981,12.12073086,157.06,156.99,7.5969]
[1749743968180,12.12073086,157.06,157.02,29.2309549]
[1749743968577,28.03821462,157.06,157.0,18.64964886]